[Event "Seniors-LEM-65 Sachsen-Anhalt 2024"]
[Site "Magdeburg"]
[Date "2024.07.01"]
[Round "1.1"]
[White "Koehler, Gerhard"]
[Black "Albert, Gerhard"]
[Result "1-0"]
[ECO "A13"]
[WhiteElo "2204"]
[BlackElo "1888"]
[Annotator "TA"]
[PlyCount "83"]
[EventDate "2024.06.25"]
[EventType "swiss"]
[EventCountry "GER"]
[SourceTitle "playchess.com"]
[Source "ChessBase"]
[SourceQuality "1"]
[TimeControl "40/5400+30:1800+30"]

{[%evp 13,83,7,13,8,3,0,20,5,75,73,85,66,70,39,58,44,45,49,63,31,84,73,87,75,152,97,106,102,100,64,64,60,85,90,96,76,94,68,118,127,186,166,203,206,210,195,209,168,169,169,169,95,98,95,441,441,437,402,500,500,489,475,556,538,858,841,841,827,814,806,1542,1360]} 1. c4 {[%emt 0:00:02]} c6 {[%emt 0:00:33]} 2. Nf3 {[%emt 0:00:17]} d5 {[%emt 0:00:28]} 3. e3 {[%emt 0:00:05]} e6 {[%emt 0:00:25]} 4. b3 {[%emt 0:00:33]} Nf6 {[%emt 0:00:50]} 5. Bb2 {[%emt 0:00:09]} Be7 {[%emt 0:00:28]} 6. Be2 {[%emt 0:00:15]} Nbd7 {[%emt 0:01:00]} 7. O-O {[%emt 0:00:25]} O-O {[%emt 0:00:12]} 8. d3 {[%emt 0:01:27]} b6 {[%emt 0:01:15]} 9. Nbd2 {[%emt 0:03:15]} Bb4 {[%emt 0:02:53]} 10. a3 {[%emt 0:00:58] The position is equal.} Bxd2 {[%emt 0:00:23]} (10... Bd6 $11 {remains equal.}) 11. Qxd2 $16 {[%emt 0:01:21]} Bb7 {[%emt 0:00:18]} 12. Rac1 {[%emt 0:02:49]} c5 {[%emt 0:02:48]} 13. Rfd1 {[%emt 0:02:34]} Re8 {[%emt 0:01:02]} 14. cxd5 {[%emt 0:04:14]} exd5 {[%emt 0:00:41]} 15. d4 {[%emt 0:06:53]} Rc8 {[%emt 0:01:16]} 16. dxc5 {[%emt 0:04:06]} Nxc5 {[%emt 0:07:36]} (16... bxc5 $14 17. Bd3 Ne4 18. Bxe4 Rxe4) 17. Nd4 {[%emt 0:00:31]} Nfe4 {[%emt 0:02:06]} 18. Qe1 {[%emt 0:00:29]} Qf6 {[%emt 0:09:01] [#] Wards off Nf5} (18... Nd6 $142) 19. Ba1 {[%emt 0:11:48]} (19. Bg4 $142 $1) 19... Qg6 {[%emt 0:06:50]} 20. b4 {[%emt 0:03:55]} Ne6 {[%emt 0:03:08]} 21. Bb5 {[%emt 0:02:52]} Nxd4 {[%emt 0:03:44]} 22. Bxd4 {[%emt 0:00:24]} Red8 {[%emt 0:04:03]} 23. Bd3 {[%emt 0:01:53] f3 is the strong threat. A strong pair of Bishops.} Qe6 {[%emt 0:03:48]} 24. f3 {[%emt 0:05:50]} Nd6 {[%emt 0:01:14]} 25. Qg3 {[%emt 0:03:02][%csl Gd4][%cal Rg3g7] Black is weak on the dark squares} g6 {[%emt 0:01:44]} ({Better is} 25... f6 $1 $14) 26. Qf4 {[%emt 0:04:50] White is much more active.} Ne8 {[%emt 0:02:21]} (26... Nf5 $16) 27. h4 $18 {[%emt 0:04:58]} Rxc1 {[%emt 0:03:15]} 28. Rxc1 {[%emt 0:00:23]} Rc8 {[%emt 0:00:12]} 29. Rxc8 {[%emt 0:00:48]} Bxc8 {[%emt 0:00:27]} 30. Qb8 {[%emt 0:03:39]} Qd7 {[%emt 0:00:06] [#]} 31. a4 $1 $40 {[%emt 0:05:12][%mdl 640] White attacks with force.} Qc7 {[%emt 0:03:27]} 32. Qxc7 {[%emt 0:03:42]} (32. Be5 $18 Qxb8 33. Bxb8) 32... Nxc7 {[%emt 0:00:30][%mdl 4096] Endgame. KBB-KBN} 33. Be5 {[%emt 0:00:12]} Na8 {[%emt 0:04:27][%mdl 8192] This move loses the game for Black.} (33... Na6 $16 {is tougher.}) 34. Bb5 {[%emt 0:02:13]} Bb7 {[%emt 0:00:48] Repels Bc6} 35. Bd7 {[%emt 0:02:02]} Kf8 {[%emt 0:02:44]} 36. Bd6+ {[%emt 0:01:05] White is clearly winning.} Kg7 {[%emt 0:00:07]} 37. b5 {[%emt 0:00:29]} Kf6 {[%emt 0:00:55]} 38. g4 {[%emt 0:01:22][%cal Bg2g4,Bg4g5][%mdl 32]} a6 {[%emt 0:01:17]} 39. g5+ {[%emt 0:00:38]} Kg7 {[%emt 0:00:06]} 40. bxa6 {[%emt 0:00:48]} Bxa6 {[%emt 0:00:31]} 41. Bc6 {[%emt 0:30:16][%csl LRa8,LRd5]} b5 {[%emt 0:30:51]} 42. axb5 {[%emt 0:18:46] Weighted Error Value: White=0.14 (very precise) /Black=0.41.  Loses game:     	---       	Black=1      Mistake:       	White=2     	Black=5      Inaccurate:     	White=3     	Black=1      OK:         	White=15    	Black=10     Best:        	---       	Black=1} 1-0

[Event "Seniors-LEM-65 Sachsen-Anhalt 2024"]
[Site "Magdeburg"]
[Date "2024.07.01"]
[Round "1.2"]
[White "Bondick, Karl-Heinz"]
[Black "Schnelzer, Reinhold"]
[Result "0-1"]
[ECO "D00"]
[WhiteElo "1887"]
[BlackElo "2162"]
[Annotator "TA"]
[PlyCount "26"]
[EventDate "2024.06.25"]
[EventType "swiss"]
[EventCountry "GER"]
[SourceTitle "playchess.com"]
[Source "ChessBase"]
[SourceQuality "1"]
[TimeControl "40/5400+30:1800+30"]

{[%evp 9,26,-36,-49,-94,-49,-70,-28,-35,-33,-104,-50,-235,-151,-207,-162,-249,-237,-315,-314]} 1. d4 {[%emt 0:06:41]} d5 {[%emt 0:01:18][%cal Bd7d5,Bd5e4][%mdl 32]} 2. e4 {[%emt 0:00:15]} dxe4 {[%emt 0:00:11]} 3. Nc3 {[%emt 0:00:11]} Nf6 {[%emt 0:00:21]} 4. f3 {[%emt 0:00:12]} Bf5 {[%emt 0:00:44]} 5. g4 {[%emt 0:01:17]} Bg6 {[%emt 0:03:27]} 6. Bg2 {[%emt 0:02:07]} exf3 {[%emt 0:02:11]} 7. Qxf3 {[%emt 0:02:03]} c6 {[%emt 0:10:22][%cal Ob8a6] White must now prevent ...Na6!} (7... Bxc2 $2 8. Qxb7 e5 9. dxe5 (9. Qxa8 exd4 10. Nd5 Nxd5 $18) 9... Nxg4 10. Qxa8 $18) 8. Nge2 {[%emt 0:03:55] Black has an edge.} e6 {[%emt 0:08:22][%cal Of8e7]} 9. O-O {[%emt 0:02:42]} (9. g5 $1 $15 Nd5 10. Ne4) 9... Bd6 {[%emt 0:04:32]} (9... Be7 $17 {[%cal Oh7h6]} 10. g5 Nh5) 10. Bg5 $2 {[%emt 0:08:28] [#] Loses the game.} ({White should play} 10. g5 $15 Nd5 11. Ne4) 10... Nbd7 {[%emt 0:05:24][%cal Oh7h5] Threatens to win with ...h5!} (10... Bxc2 11. Bd2 Bg6 12. g5 $17) 11. Rae1 {[%emt 0:02:00]} (11. Bf4 $17 {might work better.} Bb8 12. Bxb8 Qxb8 (12... Rxb8 13. h4 $17) 13. Nf4) 11... O-O {[%emt 0:03:04]} ({Resist} 11... Bxc2 12. Bf4 Bxf4 13. Nxf4 $15) 12. Ng3 {[%emt 0:06:55]} (12. Nf4 $142) 12... Qb6 $19 {[%emt 0:08:56]} 13. Nce2 {[%emt 0:08:32]} Bxc2 {[%emt 0:02:03] Weighted Error Value: White=0.83/Black=0.38.  Loses game:     	White=1     	---        Mistake:       	White=3     	Black=1      Inaccurate:     	White=1     	Black=3      OK:         	---       	Black=2} ({Don't play} 13... Qxb2 14. c3) 0-1

[Event "Seniors-LEM-65 Sachsen-Anhalt 2024"]
[Site "Magdeburg"]
[Date "2024.07.01"]
[Round "1.3"]
[White "Okrajek, Alexander"]
[Black "Stummeyer, Dieter"]
[Result "1-0"]
[ECO "B06"]
[WhiteElo "2163"]
[BlackElo "1884"]
[Annotator "RC"]
[PlyCount "108"]
[EventDate "2024.06.25"]
[EventType "swiss"]
[EventCountry "GER"]
[SourceTitle "playchess.com"]
[Source "ChessBase"]
[SourceQuality "1"]
[TimeControl "40/5400+30:1800+30"]

1. e4 {[%emt 0:00:08]} g6 {[%emt 0:00:07]} 2. d4 {[%emt 0:00:11]} Bg7 {[%emt 0:00:06]} 3. Nf3 {[%emt 0:00:19]} d6 {[%emt 0:00:15]} 4. Bd3 {[%emt 0:00:21]} c5 {[%emt 0:02:19]} 5. c3 {[%emt 0:01:42]} a6 {[%emt 0:01:22]} 6. O-O {[%emt 0:01:42]} Nc6 {[%emt 0:02:11]} 7. Be3 {[%emt 0:01:29]} cxd4 {[%emt 0:00:56]} 8. cxd4 {[%emt 0:00:49]} Nf6 {[%emt 0:00:11]} 9. h3 {[%emt 0:07:06]} O-O {[%emt 0:00:17]} 10. Nc3 {[%emt 0:00:37]} Bd7 {[%emt 0:07:43]} 11. Rc1 {[%emt 0:04:14]} Rc8 {[%emt 0:02:28]} 12. Qd2 {[%emt 0:00:45]} Qa5 {[%emt 0:05:15]} 13. Bh6 {[%emt 0:04:57]} Qh5 {[%emt 0:03:04]} 14. Bxg7 {[%emt 0:01:09]} Kxg7 {[%emt 0:00:05]} 15. Ne2 {[%emt 0:09:24]} Qa5 {[%emt 0:03:08]} 16. e5 {[%emt 0:04:44]} dxe5 {[%emt 0:02:24]} 17. dxe5 {[%emt 0:02:10]} Nd5 {[%emt 0:02:26]} 18. Qxa5 {[%emt 0:08:42]} Nxa5 {[%emt 0:00:58]} 19. Ned4 {[%emt 0:01:17]} Nc6 {[%emt 0:05:33]} 20. Nxc6 {[%emt 0:02:35]} Bxc6 {[%emt 0:00:18]} 21. Nd4 {[%emt 0:04:35]} Nf4 {[%emt 0:01:34]} 22. Nxc6 {[%emt 0:04:03]} Nxd3 {[%emt 0:00:16]} 23. Rcd1 {[%emt 0:04:42]} Nxb2 {[%emt 0:01:16]} 24. Rb1 {[%emt 0:00:36]} Rxc6 {[%emt 0:04:29]} 25. Rxb2 {[%emt 0:00:14]} b5 {[%emt 0:00:05]} 26. Rd1 {[%emt 0:02:15]} Re6 {[%emt 0:00:12]} 27. f4 {[%emt 0:00:32]} f6 {[%emt 0:00:10]} 28. exf6+ {[%emt 0:00:55]} Rfxf6 {[%emt 0:00:15]} 29. g3 {[%emt 0:00:36]} Re3 {[%emt 0:01:27]} 30. Kf2 {[%emt 0:01:51]} Rfe6 {[%emt 0:00:36]} 31. Rd4 {[%emt 0:07:25]} Ra3 {[%emt 0:00:25]} 32. Rdb4 {[%emt 0:03:57]} Kf6 {[%emt 0:00:51]} 33. R4b3 {[%emt 0:00:14]} Ra4 {[%emt 0:00:37]} 34. Re3 {[%emt 0:00:39]} Rxe3 {[%emt 0:00:11]} 35. Kxe3 {[%emt 0:00:09]} e5 {[%emt 0:00:25]} 36. fxe5+ {[%emt 0:01:54]} Kxe5 {[%emt 0:00:06]} 37. Rd2 {[%emt 0:05:21]} h5 {[%emt 0:02:40]} 38. Kf3 {[%emt 0:00:47]} Ra3+ {[%emt 0:00:46]} 39. Kf2 {[%emt 0:00:23]} h4 {[%emt 0:00:12]} 40. Re2+ {[%emt 0:02:00]} Kf5 {[%emt 0:00:16]} 41. g4+ {[%emt 0:34:22]} Kf4 {[%emt 0:31:44]} 42. Kg2 {[%emt 0:00:13]} Rg3+ {[%emt 0:00:17]} 43. Kh2 {[%emt 0:00:21]} Re3 {[%emt 0:03:25]} 44. Rf2+ {[%emt 0:01:37]} Ke5 {[%emt 0:00:33]} 45. Rd2 {[%emt 0:02:41]} b4 {[%emt 0:00:26]} 46. Kg2 {[%emt 0:01:40]} a5 {[%emt 0:00:19]} 47. Kh2 {[%emt 0:03:13]} a4 {[%emt 0:00:44]} 48. Kg2 {[%emt 0:01:04]} b3 {[%emt 0:00:11]} 49. axb3 {[%emt 0:00:17]} axb3 {[%emt 0:00:02]} 50. Rb2 {[%emt 0:00:23]} Rg3+ {[%emt 0:00:11]} 51. Kh2 {[%emt 0:00:00]} Rc3 {[%emt 0:00:00]} 52. Re2+ {[%emt 0:00:00]} Kd4 {[%emt 0:00:00]} 53. Kg1 {[%emt 0:00:00]} Rc1+ {[%emt 0:00:00]} 54. Kf2 {[%emt 0:00:00]} Rc2 {[%emt 0:00:00]} 1-0

[Event "Seniors-LEM-65 Sachsen-Anhalt 2024"]
[Site "Magdeburg"]
[Date "2024.07.01"]
[Round "1.4"]
[White "Wolke, Reimund"]
[Black "Kahe, Ralph"]
[Result "0-1"]
[ECO "C43"]
[WhiteElo "1871"]
[BlackElo "2129"]
[Annotator "RC"]
[PlyCount "59"]
[EventDate "2024.06.25"]
[EventType "swiss"]
[EventCountry "GER"]
[SourceTitle "playchess.com"]
[Source "ChessBase"]
[SourceQuality "1"]
[TimeControl "40/5400+30:1800+30"]

1. e4 {[%emt 0:00:08]} e5 {[%emt 0:00:07]} 2. Nf3 {[%emt 0:00:13]} Nf6 {[%emt 0:00:18]} 3. d4 {[%emt 0:02:04]} Nxe4 {[%emt 0:02:33]} 4. Bd3 {[%emt 0:00:41]} d5 {[%emt 0:01:48]} 5. dxe5 {[%emt 0:01:45]} Be7 {[%emt 0:00:54]} 6. O-O {[%emt 0:00:40]} O-O {[%emt 0:01:01]} 7. h3 {[%emt 0:06:16]} Nc6 {[%emt 0:08:13]} 8. Be3 {[%emt 0:04:26]} f5 {[%emt 0:09:03]} 9. exf6 {[%emt 0:00:27]} Bxf6 {[%emt 0:04:33]} 10. c3 {[%emt 0:00:19]} Bf5 {[%emt 0:01:11]} 11. Qc2 {[%emt 0:06:49]} Qd7 {[%emt 0:08:26]} 12. Nbd2 {[%emt 0:03:08]} Nd6 {[%emt 0:05:49]} 13. Rad1 {[%emt 0:10:05]} Ne5 {[%emt 0:02:43]} 14. Nxe5 {[%emt 0:03:00]} Bxe5 {[%emt 0:00:27]} 15. f4 {[%emt 0:02:32]} Bf6 {[%emt 0:04:29]} 16. Nf3 {[%emt 0:00:28]} c6 {[%emt 0:08:58]} 17. Bc5 {[%emt 0:11:34]} Bxd3 {[%emt 0:03:35]} 18. Qxd3 {[%emt 0:00:35]} Rfe8 {[%emt 0:02:12]} 19. c4 {[%emt 0:03:50]} Ne4 {[%emt 0:11:56]} 20. Bd4 {[%emt 0:02:07]} Bxd4+ {[%emt 0:00:47]} 21. Qxd4 {[%emt 0:00:17]} Ng3 {[%emt 0:00:35]} 22. Ne5 {[%emt 0:02:57]} Qf5 {[%emt 0:07:55]} 23. Rfe1 {[%emt 0:04:01]} Rad8 {[%emt 0:01:23]} 24. cxd5 {[%emt 0:06:32]} Rxd5 {[%emt 0:08:50]} 25. Qc4 {[%emt 0:00:17]} Red8 {[%emt 0:01:33]} 26. Rxd5 {[%emt 0:03:09]} Rxd5 {[%emt 0:00:49]} 27. Rd1 {[%emt 0:04:13]} Qxf4 {[%emt 0:02:19]} 28. Rxd5 {[%emt 0:00:50]} cxd5 {[%emt 0:00:40]} 29. Qxd5+ {[%emt 0:01:14]} Kf8 {[%emt 0:00:12]} 30. Qd8# {[%emt 0:20:53]} 0-1

[Event "Seniors-LEM-65 Sachsen-Anhalt 2024"]
[Site "Magdeburg"]
[Date "2024.07.01"]
[Round "1.5"]
[White "Babrikowski, Peter"]
[Black "Gagelmann, Andreas"]
[Result "1-0"]
[ECO "B06"]
[WhiteElo "2129"]
[BlackElo "1883"]
[Annotator "TA"]
[PlyCount "62"]
[EventDate "2024.06.25"]
[EventType "swiss"]
[EventCountry "GER"]
[SourceTitle "playchess.com"]
[Source "ChessBase"]
[SourceQuality "1"]
[TimeControl "40/5400+30:1800+30"]

{[%evp 9,62,35,28,32,30,22,32,26,39,27,44,14,19,22,29,25,29,14,30,31,40,42,52,-8,-6,-10,0,-31,-24,-38,-31,-52,-49,-64,-28,-32,-34,-18,-27,-21,-26,-72,-65,-509,-496,-549,-516,-621,-553,-792,-805,-724,-640,-612,-602]} 1. e4 {[%emt 0:00:03]} c6 {[%emt 0:00:05]} 2. d4 {[%emt 0:00:19]} g6 {[%emt 0:00:07]} 3. Nf3 {[%emt 0:00:18]} d5 {[%emt 0:00:08]} 4. exd5 {[%emt 0:00:57]} cxd5 {[%emt 0:00:07]} 5. c3 {[%emt 0:00:40]} Nf6 {[%emt 0:00:32]} 6. Bb5+ {[%emt 0:00:51]} Bd7 {[%emt 0:00:32]} 7. Qe2 {[%emt 0:03:12]} a6 {[%emt 0:03:33]} 8. Bd3 {[%emt 0:02:14] White is slightly better.} Bg7 {[%emt 0:00:54]} 9. Ne5 {[%emt 0:01:53]} Nc6 {[%emt 0:00:51]} 10. Nxd7 {[%emt 0:00:22]} Qxd7 {[%emt 0:00:20]} 11. Nd2 {[%emt 0:02:29]} O-O {[%emt 0:00:15][%cal Oe7e5]} 12. O-O {[%emt 0:01:53]} Rfe8 {[%emt 0:03:37]} 13. f4 {[%emt 0:01:31]} e6 {[%emt 0:01:54]} 14. Nf3 {[%emt 0:01:01]} Qd6 {[%emt 0:04:14]} 15. Ne5 {[%emt 0:03:11]} b5 {[%emt 0:01:16]} 16. Nxc6 {[%emt 0:07:08]} (16. b4 $14) 16... Qxc6 $11 {[%emt 0:00:19]} 17. a3 {[%emt 0:00:29]} Rab8 {[%emt 0:01:44]} 18. Bd2 {[%emt 0:03:37]} Ne4 {[%emt 0:00:59]} 19. Rae1 {[%emt 0:06:07][%cal Rd3e4]} f5 {[%emt 0:01:28]} 20. Bc1 {[%emt 0:01:22]} a5 {[%emt 0:01:24]} 21. Be3 {[%emt 0:06:18]} b4 {[%emt 0:04:47]} 22. axb4 {[%emt 0:04:09]} axb4 {[%emt 0:00:15]} 23. c4 $1 {[%emt 0:01:59]} dxc4 {[%emt 0:02:24]} 24. Bxc4 {[%emt 0:00:07]} Red8 $36 {[%emt 0:01:10][%mdl 2048] Black fights for an advantage.} 25. Rd1 {[%emt 0:01:53] [#]} (25. Qd3 $1 $11) 25... Rd6 $1 $17 {[%emt 0:04:16]} 26. Bxe6+ $2 {[%emt 0:04:57][%mdl 8192] Now White is beyond hope.} Rxe6 $19 {[%emt 0:00:43] Black is clearly winning.} 27. d5 {[%emt 0:00:13]} Qa6 {[%emt 0:00:07]} 28. Qc2 {[%emt 0:03:34]} Rd6 {[%emt 0:01:40] And now ...b3 would win.} 29. g4 {[%emt 0:01:25]} b3 {[%emt 0:07:55]} 30. Qg2 {[%emt 0:03:31]} Qc8 {[%emt 0:02:10]} 31. Rc1 {[%emt 0:03:21]} Qd7 {[%emt 0:00:41][%mdl 32768] Weighted Error Value: White=0.53/Black=0.15 (very precise) .  Loses game:     	White=1     	---        Mistake:       	White=2     	---        Inaccurate:     	White=3     	Black=1      OK:         	White=9     	Black=5      Strong:       	White=1     	Black=1     . Loss on time!?} 1-0

[Event "Seniors-LEM-65 Sachsen-Anhalt 2024"]
[Site "Magdeburg"]
[Date "2024.07.01"]
[Round "1.6"]
[White "Gehrmann, Dorit"]
[Black "Broemel, Richard"]
[Result "0-1"]
[ECO "D01"]
[WhiteElo "1881"]
[BlackElo "2123"]
[Annotator "TA"]
[PlyCount "68"]
[EventDate "2024.06.25"]
[EventType "swiss"]
[EventCountry "GER"]
[SourceTitle "playchess.com"]
[Source "ChessBase"]
[SourceQuality "1"]
[TimeControl "40/5400+30:1800+30"]

{[%evp 9,68,12,16,5,9,1,13,0,9,11,13,4,19,3,6,-5,-6,-40,-31,-68,-66,-66,-64,-75,-56,-54,-58,-59,-54,-45,-49,-59,-56,-52,-48,-81,-75,-77,-93,-134,-68,-115,-56,-84,0,-118,-75,-81,0,-91,-80,-159,-168,-414,-430,-424,-421,-433,-418,-425,-423]} 1. d4 {[%emt 0:00:05]} Nf6 {[%emt 0:00:10]} 2. Nc3 {[%emt 0:00:15]} d5 {[%emt 0:00:33]} 3. Bg5 {[%emt 0:00:13]} c6 {[%emt 0:00:20]} 4. e3 {[%emt 0:00:32]} Qb6 {[%emt 0:02:53]} 5. Rb1 {[%emt 0:00:42]} Bf5 {[%emt 0:03:27]} 6. Bd3 {[%emt 0:00:37]} Bg6 {[%emt 0:00:52]} 7. Nf3 {[%emt 0:00:52]} Nbd7 {[%emt 0:00:41]} 8. O-O {[%emt 0:01:00] The position is equal.} e6 {[%emt 0:01:36]} 9. Re1 {[%emt 0:06:05]} Be7 {[%emt 0:08:14]} 10. h3 {[%emt 0:03:54]} O-O {[%emt 0:01:30]} 11. Ne5 {[%emt 0:01:17] [#] And now Nxd7 would win.} Qd8 {[%emt 0:08:06]} 12. f4 {[%emt 0:04:16]} c5 {[%emt 0:07:21]} 13. Bxg6 {[%emt 0:05:42]} hxg6 {[%emt 0:00:10]} 14. Nf3 {[%emt 0:09:23]} Rc8 {[%emt 0:05:23]} 15. a3 {[%emt 0:00:38]} a6 {[%emt 0:05:21]} 16. Ne2 {[%emt 0:01:26]} b5 {[%emt 0:06:10]} 17. c3 {[%emt 0:00:22]} Nb6 {[%emt 0:09:49]} 18. Ne5 {[%emt 0:01:58]} Ne4 {[%emt 0:03:40]} 19. Bxe7 {[%emt 0:01:37]} Qxe7 {[%emt 0:00:03]} 20. dxc5 {[%emt 0:05:01]} Rxc5 {[%emt 0:03:48]} 21. Nd4 {[%emt 0:01:49]} Nc4 {[%emt 0:07:16]} 22. Nef3 {[%emt 0:05:51]} Rfc8 {[%emt 0:06:22][%cal Oc4a3]} 23. Nb3 {[%emt 0:02:17]} R5c7 {[%emt 0:02:30][%cal Oc4a3]} 24. Nbd4 {[%emt 0:04:47] [#]} Rb7 {[%emt 0:00:51]} (24... Nxa3 $1 $17 25. bxa3 Nxc3) 25. Re2 {[%emt 0:05:32]} (25. Nb3 $15) 25... Qd8 {[%emt 0:01:45] Black is much more active.} ({Better is} 25... Nxa3 $17 26. Ra1 (26. bxa3 Nxc3 27. Rc2 Rbc7 $19) 26... Nc4 27. Rxa6 Ng3) 26. Qb3 {[%emt 0:02:00]} Qe7 {[%emt 0:02:08]} ({Black should play} 26... Qf8 $17) 27. Rc1 {[%emt 0:01:04]} (27. Qd1 $1 $11 {remains equal.}) 27... Nc5 {[%emt 0:02:04]} 28. Qc2 {[%emt 0:01:25]} Ne4 {[%emt 0:00:10]} (28... a5 $17) 29. Qd3 {[%emt 0:03:51]} (29. Qb3 $1 $11 {keeps the balance.}) 29... Rbc7 {[%emt 0:00:25]} 30. Qd1 {[%emt 0:01:55]} (30. Rb1 $142) 30... Ng3 $36 {[%emt 0:00:32][%mdl 2048] Black is really pushing.} 31. Re1 $2 {[%emt 0:03:33]} (31. Rf2) 31... Nxb2 $19 {[%emt 0:00:58]} 32. Qc2 {[%emt 0:01:55]} Na4 {[%emt 0:01:07][%cal Ra4c3]} (32... Qxa3 33. Kh2 Nf5 (33... Rxc3 $2 34. Ra1 $19) 34. Ra1 Qxc3 35. Qxc3 Rxc3 36. Rxa6 $19) 33. Qb3 {[%emt 0:01:55]} Rxc3 {[%emt 0:01:56]} 34. Rxc3 {[%emt 0:00:19]} Rxc3 {[%emt 0:00:04] Weighted Error Value: White=0.33/Black=0.15 (very precise) .  Mistake:       	White=5     	Black=4      Inaccurate:     	White=5     	Black=1      OK:         	White=8     	Black=9      Best:        	---       	Black=1} ({Don't play} 34... Nxc3 35. Qb2 $19) 0-1

[Event "Seniors-LEM-65 Sachsen-Anhalt 2024"]
[Site "Magdeburg"]
[Date "2024.07.01"]
[Round "1.7"]
[White "Erler, Rainer"]
[Black "Zechel, Rolf-Ruediger"]
[Result "1/2-1/2"]
[ECO "B26"]
[WhiteElo "2121"]
[BlackElo "1870"]
[Annotator "TA"]
[PlyCount "40"]
[EventDate "2024.06.25"]
[EventType "swiss"]
[EventCountry "GER"]
[SourceTitle "playchess.com"]
[Source "ChessBase"]
[SourceQuality "1"]
[TimeControl "40/5400+30:1800+30"]

{[%evp 21,40,13,21,-29,15,-11,-9,-23,-2,-13,29,2,20,-19,0,0,0,0,0,-13,0]} 1. e4 {[%emt 0:00:03]} c5 {[%emt 0:00:12]} 2. Nc3 {[%emt 0:00:03]} Nc6 {[%emt 0:00:15]} 3. g3 {[%emt 0:00:04]} g6 {[%emt 0:00:35]} 4. Bg2 {[%emt 0:00:07]} Bg7 {[%emt 0:00:34]} 5. d3 {[%emt 0:00:17]} e6 {[%emt 0:00:56]} 6. Nh3 {[%emt 0:01:09]} Nge7 {[%emt 0:01:21]} 7. Be3 {[%emt 0:01:07]} d6 {[%emt 0:00:45]} 8. Qd2 {[%emt 0:02:44]} O-O {[%emt 0:13:03]} 9. O-O {[%emt 0:05:22]} Nd4 {[%emt 0:03:59]} 10. Nd1 {[%emt 0:07:55]} Rb8 {[%emt 0:01:54]} 11. c3 {[%emt 0:02:14]} Ndc6 {[%emt 0:00:17]} 12. f4 {[%emt 0:05:41]} (12. Rc1 $142) 12... f5 {[%emt 0:01:07]} 13. Nhf2 {[%emt 0:04:24]} b6 {[%emt 0:02:11]} 14. exf5 {[%emt 0:10:32]} exf5 {[%emt 0:00:36]} 15. d4 {[%emt 0:01:55]} Bd7 {[%emt 0:09:33][%cal Bc8d7,Bd7e8,Be8f7][%mdl 32]} 16. b3 {[%emt 0:07:50]} Be8 {[%emt 0:03:29] The position is equal.} 17. Nb2 {[%emt 0:04:54]} Bf7 {[%emt 0:00:49]} 18. d5 {[%emt 0:00:34]} Na5 {[%emt 0:01:00]} 19. Rac1 {[%emt 0:01:35]} b5 {[%emt 0:02:58]} 20. Nfd1 {[%emt 0:08:29]} a6 {[%emt 0:02:04] An uneventful encounter.   Weighted Error Value: White=0.15 (very precise) /Black=0.19 (very precise) .  Inaccurate:     	White=3     	Black=2      OK:         	White=4     	Black=2      Best:        	White=1     	---} 1/2-1/2